fUSD/lending_fUSD_20241224
["ID","MTS","AMOUNT","RATE_DAILY","PERIOD"]
[346518163,1735018255342,-500.0,0.00014519,2]
[346518164,1735018255351,-500.0,0.00014519,2]
[346518165,1735018255360,-500.0,0.00014519,2]
[346518166,1735018255369,-500.0,0.00014519,2]
[346518167,1735018255378,-500.0,0.00014519,2]
[346518168,1735018255387,-327.97951016,0.00014519,2]
[346518169,1735018255396,-504.93981618,0.00014519,2]
[346518170,1735018255405,-500.0,0.00014519,2]
[346518171,1735018255414,-500.0,0.00014519,2]
[346518172,1735018255423,-500.0,0.00014519,2]
[346518173,1735018255433,-500.0,0.00014519,2]
[346518174,1735018255442,-501.64926721,0.00014519,2]
[346518175,1735018255451,-500.0,0.00014519,2]
[346518176,1735018255460,-500.0,0.00014519,2]
[346518177,1735018255469,-500.0,0.00014519,2]
[346518178,1735018255478,-1508.76,0.00014519,2]
[346518179,1735018255487,-500.0,0.00014519,2]
[346518180,1735018255496,-500.0,0.00014519,2]
[346518181,1735018255506,-500.0,0.00014519,2]
[346518182,1735018255515,-500.0,0.00014519,2]
[346518183,1735018255525,-500.0,0.00014519,2]
[346518184,1735018255534,-500.0,0.00014519,2]
[346518185,1735018255543,-500.0,0.00014519,2]
[346518186,1735018255552,-500.0,0.00014519,2]
[346518187,1735018255561,-500.0,0.00014519,2]
[346518188,1735018255570,-500.0,0.00014519,2]
[346518189,1735018255579,-500.0,0.00014519,2]
[346518190,1735018255588,-500.0,0.00014519,2]
[346518191,1735018255598,-1465.72,0.00014519,2]
[346518192,1735018255607,-503.43646655,0.00014519,2]
[346518193,1735018255615,-500.0,0.00014519,2]
[346518194,1735018255624,-500.0,0.00014519,2]
[346518195,1735018255633,-500.0,0.00014519,2]
[346518196,1735018255642,-500.0,0.00014519,2]
[346518197,1735018255651,-500.0,0.00014519,2]
[346518198,1735018255660,-452.6653268,0.00014519,2]
[346518199,1735018255670,-1465.24,0.00014519,2]
[346518200,1735018255678,-500.0,0.00014519,2]
[346518201,1735018255690,-500.0,0.00014519,2]
[346518202,1735018255699,-500.0,0.00014519,2]
[346518203,1735018255709,-500.0,0.00014519,2]
[346518204,1735018255719,-2919.0,0.00014519,2]
[346518205,1735018255729,-500.0,0.00014519,2]
[346518206,1735018255739,-500.0,0.00014519,2]
[346518207,1735018255748,-2253.9,0.00014519,2]
[346518208,1735018255758,-3237.5,0.00014519,2]
[346518209,1735018255767,-500.0,0.00014519,2]
[346518210,1735018255777,-500.0,0.00014519,2]
[346518211,1735018255787,-500.0,0.00014519,2]
[346518212,1735018255797,-504.43561542,0.00014519,2]
[346518213,1735018255806,-500.0,0.00014519,2]
[346518214,1735018255815,-554.59,0.00014519,2]
[346518215,1735018255825,-794.47,0.00014519,2]
[346518216,1735018255834,-500.0,0.00014519,2]
[346518217,1735018255844,-500.0,0.00014519,2]
[346518218,1735018255854,-501.56744982,0.00014519,2]
[346518219,1735018255863,-500.0,0.00014519,2]
[346518220,1735018255872,-935.63,0.00014519,2]
[346518221,1735018255882,-500.0,0.00014519,2]
[346518222,1735018255891,-500.0,0.00014519,2]
[346518223,1735018255901,-2816.14,0.00014519,2]
[346518224,1735018255910,-500.0,0.00014519,2]
[346518225,1735018255919,-500.0,0.00014519,2]
[346518226,1735018255928,-500.0,0.00014519,2]
[346518227,1735018255939,-500.0,0.00014519,2]
[346518228,1735018255949,-500.0,0.00014519,2]
[346518229,1735018255958,-955.57,0.00014519,2]
[346518230,1735018255967,-500.0,0.00014519,2]
[346518231,1735018255976,-500.0,0.00014519,2]
[346518232,1735018255985,-500.0,0.00014519,2]
[346518233,1735018255995,-500.0,0.00014519,2]
[346518234,1735018256004,-500.0,0.00014519,2]
[346518235,1735018256013,-500.0,0.00014519,2]
[346518236,1735018256022,-908.11,0.00014519,2]
[346518237,1735018256032,-500.0,0.00014519,2]
[346518238,1735018256042,-500.0,0.00014519,2]
[346518239,1735018256051,-500.0,0.00014519,2]
[346518240,1735018256061,-500.0,0.00014519,2]
[346518241,1735018256070,-500.0,0.00014519,2]
[346518242,1735018256080,-1028.08,0.00014519,2]
[346518243,1735018256089,-463.89399656,0.00014519,2]
[346518244,1735018256098,-500.0,0.00014519,2]
[346518245,1735018256107,-568.18,0.00014519,2]
[346518246,1735018256117,-500.0,0.00014519,2]
[346518247,1735018256127,-500.0,0.00014519,2]
[346518248,1735018256138,-683.69,0.00014519,2]
[346518249,1735018256147,-500.0,0.00014519,2]
[346518250,1735018256157,-502.82936247,0.00014519,2]
[346518251,1735018256166,-500.0,0.00014519,2]
[346518252,1735018256175,-500.0,0.00014519,2]
[346518253,1735018256186,-500.0,0.00014519,2]
[346518254,1735018256195,-1115.82,0.00014519,2]
[346518255,1735018256204,-722.75,0.00014519,2]
[346518256,1735018256213,-500.0,0.00014519,2]
[346518257,1735018256223,-500.0,0.00014519,2]
[346518258,1735018256232,-1499.78,0.00014519,2]
[346518259,1735018256241,-500.0,0.00014519,2]
[346518260,1735018256251,-500.0,0.00014519,2]
[346518261,1735018256260,-500.0,0.00014519,2]
[346518262,1735018256269,-1265.66,0.00014519,2]
[346518263,1735018256279,-500.0,0.00014519,2]
[346518264,1735018256288,-198.12869601,0.00014519,2]
[346518265,1735018256297,-500.0,0.00014519,2]
[346518266,1735018256307,-1225.19,0.00014519,2]
[346518267,1735018256317,-7745.3,0.00014519,2]
[346518268,1735018256326,-500.0,0.00014519,2]
[346518269,1735018256336,-500.0,0.00014519,2]
[346518270,1735018256345,-500.0,0.00014519,2]
[346518271,1735018256355,-954.82,0.00014519,2]
[346518272,1735018256364,-506.13246899,0.00014519,2]
[346518273,1735018256374,-500.0,0.00014519,2]
[346518274,1735018256383,-500.0,0.00014519,2]
[346518275,1735018256392,-509.53723001,0.00014519,2]
[346518276,1735018256402,-500.0,0.00014519,2]
[346518277,1735018256412,-500.0,0.0001452,2]
[346518278,1735018256421,-500.0,0.0001452,2]
[346518279,1735018256430,-500.0,0.0001452,2]
[346518280,1735018256442,-500.0,0.0001452,2]
[346518281,1735018256450,-500.0,0.0001452,2]
[346518282,1735018256459,-500.0,0.0001452,2]
[346518283,1735018256469,-500.0,0.0001452,2]
[346518284,1735018256478,-500.0,0.0001452,2]
[346518285,1735018256487,-500.0,0.0001452,2]
[346518286,1735018256496,-500.0,0.0001452,2]
[346518287,1735018256505,-500.0,0.0001452,2]
[346518288,1735018256515,-500.0,0.0001452,2]
[346518289,1735018256524,-500.0,0.0001452,2]
[346518290,1735018256533,-500.0,0.0001452,2]
[346518291,1735018256542,-309.53646514,0.0001452,2]
[346518292,1735018256551,-500.0,0.0001452,2]
[346518293,1735018256561,-500.0,0.0001452,2]
[346518294,1735018256570,-500.0,0.0001452,2]
[346518295,1735018256579,-500.0,0.0001452,2]
[346518296,1735018256588,-500.0,0.0001452,2]
[346518297,1735018256597,-500.0,0.0001452,2]
[346518298,1735018256606,-546.3,0.0001452,2]
[346518299,1735018256615,-500.0,0.0001452,2]
[346518300,1735018256624,-658.36,0.0001452,2]
[346518301,1735018256634,-500.0,0.0001452,2]
[346518302,1735018256643,-500.0,0.0001452,2]
[346518303,1735018256652,-500.0,0.0001452,2]
[346518304,1735018256662,-500.0,0.0001452,2]
[346518305,1735018256671,-680.9,0.0001452,2]
[346518306,1735018256680,-500.0,0.0001452,2]
[346518307,1735018256690,-500.0,0.0001452,2]
[346518308,1735018256700,-500.0,0.0001452,2]
[346518309,1735018256710,-501.62,0.0001452,2]
[346518310,1735018256719,-586.12,0.0001452,2]
[346518311,1735018256728,-500.0,0.0001452,2]
[346518312,1735018256738,-500.0,0.0001452,2]
[346518313,1735018256747,-500.0,0.0001452,2]
[346518314,1735018256757,-500.0,0.0001452,2]
[346518315,1735018256766,-500.0,0.0001452,2]
[346518316,1735018256775,-500.0,0.0001452,2]
[346518317,1735018256784,-500.0,0.0001452,2]
[346518318,1735018256793,-500.0,0.0001452,2]
[346518319,1735018256803,-500.71,0.0001452,2]
[346518320,1735018256812,-582.46,0.0001452,2]
[346518321,1735018256822,-500.0,0.0001452,2]
[346518322,1735018256831,-500.0,0.0001452,2]
[346518323,1735018256840,-500.0,0.0001452,2]
[346518324,1735018256849,-500.0,0.0001452,2]
[346518325,1735018256859,-500.0,0.0001452,2]
[346518326,1735018256868,-584.84,0.0001452,2]
[346518327,1735018256877,-500.0,0.0001452,2]
[346518328,1735018256887,-667.98,0.0001452,2]
[346518329,1735018256896,-500.0,0.0001452,2]
[346518330,1735018256905,-500.0,0.0001452,2]
[346518331,1735018256914,-500.0,0.0001452,2]
[346518332,1735018257184,-500.0,0.0001452,2]
[346518333,1735018257195,-500.0,0.0001452,2]
[346518334,1735018257205,-500.0,0.0001452,2]
[346518335,1735018257214,-500.0,0.0001452,2]
[346518336,1735018257225,-500.0,0.0001452,2]
[346518337,1735018257235,-500.0,0.0001452,2]
[346518338,1735018257244,-711.57,0.0001452,2]
[346518339,1735018257253,-500.0,0.0001452,2]
[346518340,1735018257263,-500.0,0.0001452,2]
[346518341,1735018257272,-500.0,0.0001452,2]
[346518342,1735018257282,-897.7,0.0001452,2]
[346518343,1735018257291,-500.0,0.0001452,2]
[346518344,1735018257301,-500.0,0.0001452,2]
[346518345,1735018257310,-500.0,0.0001452,2]
[346518346,1735018257320,-500.0,0.0001452,2]
[346518347,1735018257329,-500.0,0.0001452,2]
[346518348,1735018257338,-500.0,0.0001452,2]
[346518349,1735018257347,-560.63,0.0001452,2]
[346518350,1735018257357,-668.01,0.0001452,2]
[346518351,1735018257366,-500.0,0.0001452,2]
[346518352,1735018257375,-500.0,0.0001452,2]
[346518353,1735018257385,-557.47,0.0001452,2]
[346518354,1735018257394,-500.0,0.0001452,2]
[346518355,1735018257403,-500.0,0.0001452,2]
[346518356,1735018257413,-383.597552,0.0001452,2]
[346518357,1735018257422,-500.0,0.0001452,2]
[346518358,1735018257431,-500.0,0.0001452,2]
[346518359,1735018257442,-555.168296,0.0001452,2]
[346518360,1735018257451,-500.0,0.0001452,2]
[346518361,1735018257460,-500.0,0.0001452,2]
[346518362,1735018257469,-500.0,0.0001452,2]
[346518363,1735018257478,-500.0,0.0001452,2]
[346518364,1735018257487,-500.0,0.0001452,2]
[346518365,1735018257497,-946.68,0.0001452,2]
[346518366,1735018257508,-500.0,0.0001452,2]
[346518367,1735018257517,-500.0,0.0001452,2]
[346518368,1735018257526,-500.0,0.0001452,2]
[346518369,1735018257535,-500.0,0.0001452,2]
[346518370,1735018257545,-500.0,0.0001452,2]
[346518371,1735018257554,-500.0,0.0001452,2]
[346518372,1735018257563,-500.0,0.0001452,2]
[346518373,1735018257572,-500.0,0.0001452,2]
[346518374,1735018257581,-592.9,0.0001452,2]
[346518375,1735018257590,-547.28,0.0001452,2]
[346518376,1735018257600,-598.2,0.0001452,2]
[346518377,1735018257609,-520.01,0.0001452,2]
[346518378,1735018257618,-500.0,0.0001452,2]
[346518379,1735018257627,-506.66,0.0001452,2]
[346518380,1735018257636,-500.0,0.0001452,2]
[346518381,1735018257645,-500.0,0.0001452,2]
[346518382,1735018257655,-500.0,0.0001452,2]
[346518383,1735018257664,-662.17,0.0001452,2]
[346518384,1735018257673,-500.0,0.0001452,2]
[346518385,1735018257683,-399.12,0.0001452,2]
[346518386,1735018257692,-500.0,0.0001452,2]
[346518387,1735018257701,-500.0,0.0001452,2]
[346518388,1735018257711,-696.48,0.0001452,2]
[346518389,1735018257720,-500.0,0.0001452,2]
[346518390,1735018257729,-500.0,0.0001452,2]
[346518391,1735018257738,-518.6,0.0001452,2]
[346518392,1735018257747,-500.0,0.0001452,2]
[346518393,1735018257756,-500.0,0.0001452,2]
[346518394,1735018257765,-1152.77,0.0001452,2]
[346518395,1735018257775,-500.0,0.0001452,2]
[346518396,1735018257784,-500.0,0.0001452,2]
[346518397,1735018257793,-500.0,0.0001452,2]
[346518398,1735018257802,-586.32,0.0001452,2]
[346518399,1735018257811,-725.31,0.0001452,2]
[346518400,1735018257820,-500.0,0.0001452,2]
[346518401,1735018257830,-500.0,0.0001452,2]
[346518402,1735018257839,-846.78,0.0001452,2]
[346518403,1735018257849,-500.0,0.0001452,2]
[346518404,1735018257858,-500.0,0.0001452,2]
[346518405,1735018257867,-500.0,0.0001452,2]
[346518406,1735018257877,-547.95,0.0001452,2]
[346518407,1735018257886,-796.84,0.0001452,2]
[346518408,1735018257897,-713.44,0.0001452,2]
[346518409,1735018257906,-523.75,0.0001452,2]
[346518410,1735018257916,-500.0,0.0001452,2]
[346518411,1735018257925,-500.0,0.0001452,2]
[346518412,1735018257935,-500.0,0.0001452,2]
[346518413,1735018257944,-500.0,0.0001452,2]
[346518414,1735018257953,-500.0,0.0001452,2]
[346518415,1735018257963,-500.0,0.0001452,2]
[346518416,1735018257972,-500.0,0.0001452,2]
[346518417,1735018257981,-5016.22,0.0001452,2]
[346518418,1735018257990,-1638.06,0.0001452,2]
[346518419,1735018257999,-500.0,0.0001452,2]
[346518420,1735018258008,-551.44,0.0001452,2]
[346518421,1735018258017,-1164.78,0.0001452,2]
[346518422,1735018258026,-500.0,0.0001452,2]
[346518423,1735018258036,-500.0,0.0001452,2]
[346518424,1735018258045,-504.00435612,0.0001452,2]
[346518425,1735018258054,-782.49,0.0001452,2]
[346518426,1735018258064,-1583.85,0.0001452,2]
[346518427,1735018258074,-500.0,0.0001452,2]
[346518428,1735018258083,-500.0,0.0001452,2]
[346518429,1735018258092,-901.71,0.0001452,2]
[346518430,1735018258102,-500.0,0.0001452,2]
[346518431,1735018258111,-1977.81,0.0001452,2]
[346518432,1735018258120,-500.0,0.0001452,2]
[346518433,1735018258129,-509.19,0.0001452,2]
[346518434,1735018258141,-500.0,0.0001452,2]
[346518435,1735018258150,-500.0,0.0001452,2]
[346518436,1735018258160,-552.4,0.0001452,2]
[346518437,1735018258169,-500.0,0.0001452,2]
[346518438,1735018258178,-500.0,0.0001452,2]
[346518439,1735018258188,-500.0,0.0001452,2]
[346518440,1735018258197,-792.79,0.0001452,2]
[346518441,1735018258208,-849.68,0.0001452,2]
[346518442,1735018258217,-2088.9,0.0001452,2]
[346518443,1735018258227,-500.0,0.0001452,2]
[346518444,1735018258237,-2055.88,0.0001452,2]
[346518445,1735018258246,-500.0,0.0001452,2]
[346518446,1735018258255,-7677.04,0.0001452,2]
[346518447,1735018258265,-543.48,0.0001452,2]
[346518448,1735018258274,-854.97,0.0001452,2]
[346518449,1735018258283,-1395.53,0.0001452,2]
[346518450,1735018258292,-500.0,0.0001452,2]
[346518451,1735018258301,-500.0,0.0001452,2]
[346518452,1735018258310,-500.0,0.0001452,2]
[346518453,1735018258320,-1385.02,0.0001452,2]
[346518454,1735018258329,-500.0,0.0001452,2]
[346518455,1735018258338,-3679.71,0.0001452,2]
[346518456,1735018258348,-500.0,0.0001452,2]
[346518457,1735018258357,-1080.57,0.0001452,2]
[346518458,1735018258366,-500.0,0.0001452,2]
[346518459,1735018258375,-1694.03,0.0001452,2]
[346518460,1735018258385,-500.0,0.0001452,2]
[346518461,1735018258394,-500.0,0.0001452,2]
[346518462,1735018258403,-505.35,0.0001452,2]
[346518463,1735018258412,-1117.85,0.0001452,2]
[346518464,1735018258421,-705.9,0.0001452,2]
[346518465,1735018258430,-317.44969518,0.0001452,2]
[346518466,1735018258440,-1539.8,0.0001452,2]
[346518467,1735018258449,-500.0,0.0001452,2]
[346518468,1735018258459,-2249.94,0.0001452,2]
[346518469,1735018258468,-500.0,0.0001452,2]
[346518470,1735018258477,-500.0,0.0001452,2]
[346518471,1735018258486,-500.0,0.0001452,2]
[346518472,1735018258495,-3833.98,0.0001452,2]
[346518473,1735018258505,-500.0,0.0001452,2]
[346518474,1735018258514,-500.0,0.0001452,2]
[346518475,1735018258523,-500.0,0.0001452,2]
[346518476,1735018258532,-937.66,0.0001452,2]
[346518477,1735018258541,-500.0,0.0001452,2]
[346518478,1735018258550,-500.0,0.0001452,2]
[346518479,1735018258559,-500.0,0.0001452,2]
[346518480,1735018258569,-2551.89,0.0001452,2]
[346518481,1735018258578,-586.98,0.0001452,2]
[346518482,1735018258587,-500.0,0.0001452,2]
[346518483,1735018258596,-1335.36,0.0001452,2]
[346518484,1735018258605,-3168.41,0.0001452,2]
[346518485,1735018258614,-1369.41,0.0001452,2]
[346518486,1735018258623,-500.0,0.0001452,2]
[346518487,1735018258632,-500.0,0.0001452,2]
[346518488,1735018258641,-575.13,0.0001452,2]
[346518489,1735018258650,-845.43,0.0001452,2]
[346518490,1735018258659,-500.0,0.0001452,2]
[346518491,1735018258668,-500.0,0.0001452,2]
[346518492,1735018258678,-887.19,0.0001452,2]
[346518493,1735018258689,-500.0,0.0001452,2]
[346518494,1735018258698,-547.48,0.0001452,2]
[346518495,1735018258707,-500.0,0.0001452,2]
[346518496,1735018258715,-716.51,0.0001452,2]
[346518497,1735018258724,-500.0,0.0001452,2]
[346518498,1735018258733,-561.45,0.0001452,2]
[346518499,1735018258742,-500.0,0.0001452,2]
[346518500,1735018258752,-500.0,0.0001452,2]
[346518501,1735018258761,-558.02,0.0001452,2]
[346518502,1735018258770,-500.0,0.0001452,2]
[346518503,1735018258779,-500.0,0.0001452,2]
[346518504,1735018258789,-1000.0,0.0001452,2]
[346518505,1735018258798,-500.0,0.0001452,2]
[346518506,1735018258807,-500.0,0.0001452,2]
[346518507,1735018258816,-973.2,0.0001452,2]
[346518508,1735018258824,-3656.76,0.0001452,2]
[346518509,1735018258834,-997.53,0.0001452,2]
[346518510,1735018258843,-500.0,0.0001452,2]
[346518511,1735018258853,-855.77,0.0001452,2]
[346518512,1735018258862,-693.49,0.0001452,2]
[346518513,1735018258871,-500.0,0.0001452,2]
[346518514,1735018258880,-500.0,0.0001452,2]
[346518515,1735018258890,-637.35,0.0001452,2]
[346518516,1735018258899,-1739.36,0.0001452,2]
[346518517,1735018258907,-584.35393758,0.0001452,2]
[346518518,1735018258917,-500.0,0.0001452,2]
[346518519,1735018258926,-500.0,0.0001452,2]
[346518520,1735018258935,-705.36,0.0001452,2]
[346518521,1735018258944,-500.0,0.0001452,2]
[346518522,1735018258953,-500.0,0.0001452,2]
[346518523,1735018258962,-1543.65,0.0001452,2]
[346518524,1735018258971,-500.0,0.0001452,2]
[346518525,1735018258979,-820.97,0.0001452,2]
[346518526,1735018258989,-1819.38,0.0001452,2]
[346518527,1735018258998,-500.0,0.0001452,2]
[346518528,1735018259007,-4120.74,0.0001452,2]
[346518529,1735018259017,-910.57,0.0001452,2]
[346518530,1735018259026,-989.44,0.0001452,2]
[346518531,1735018259035,-2961.05,0.0001452,2]
[346518532,1735018259044,-500.0,0.0001452,2]
[346518533,1735018259053,-500.0,0.0001452,2]
[346518534,1735018259062,-503.58,0.0001452,2]
[346518535,1735018259071,-903.8,0.0001452,2]
[346518536,1735018259080,-596.96,0.0001452,2]
[346518537,1735018259090,-807.94,0.0001452,2]
[346518538,1735018259099,-1456.76,0.0001452,2]
[346518539,1735018259108,-2643.91,0.0001452,2]
[346518540,1735018259117,-500.0,0.0001452,2]
[346518541,1735018259126,-1308.53,0.0001452,2]
[346518542,1735018259137,-794.16,0.0001452,2]
[346518543,1735018259148,-1213.29,0.0001452,2]
[346518544,1735018259158,-1676.79,0.0001452,2]
[346518545,1735018259168,-500.0,0.0001452,2]
[346518546,1735018259177,-500.0,0.0001452,2]
[346518547,1735018259187,-5281.26,0.0001452,2]
[346518548,1735018259196,-1433.69,0.0001452,2]
[346518549,1735018259206,-500.0,0.0001452,2]
[346518550,1735018259215,-677.19,0.0001452,2]
[346518551,1735018259225,-500.0,0.0001452,2]
[346518552,1735018259234,-1372.29,0.0001452,2]
[346518553,1735018259243,-1023.69,0.0001452,2]
[346518554,1735018259252,-500.0,0.0001452,2]
[346518555,1735018259262,-680.17,0.0001452,2]
[346518556,1735018259275,-552.15,0.0001452,2]
[346518557,1735018259285,-705.72,0.0001452,2]
[346518558,1735018259294,-500.0,0.0001452,2]
[346518559,1735018259303,-674.8,0.0001452,2]
[346518560,1735018259312,-4867.25,0.0001452,2]
[346518561,1735018259321,-3213.6,0.0001452,2]
[346518562,1735018259330,-854.26,0.0001452,2]
[346518563,1735018259340,-500.0,0.0001452,2]
[346518564,1735018259349,-1660.69,0.0001452,2]
[346518565,1735018259358,-500.0,0.0001452,2]
[346518566,1735018259368,-548.87,0.0001452,2]
[346518567,1735018259378,-500.0,0.0001452,2]
[346518568,1735018259387,-826.14,0.0001452,2]
[346518569,1735018259396,-14771.78,0.0001452,2]
[346518570,1735018259405,-619.38,0.0001452,2]
[346518571,1735018259414,-3293.16,0.0001452,2]
[346518572,1735018259424,-500.0,0.0001452,2]
[346518573,1735018259489,-500.0,0.0001452,2]
[346518574,1735018259498,-500.0,0.0001452,2]
[346518575,1735018259507,-500.0,0.0001452,2]
[346518576,1735018259515,-527.97,0.0001452,2]
[346518577,1735018259524,-500.0,0.0001452,2]
[346518578,1735018259533,-500.0,0.0001452,2]
[346518579,1735018259542,-257.91729831,0.0001452,2]
[346518580,1735018259551,-500.0,0.0001452,2]
[346518581,1735018259560,-1071.77,0.0001452,2]
[346518582,1735018259569,-500.0,0.0001452,2]
[346518583,1735018259578,-500.0,0.0001452,2]
[346518584,1735018259586,-2075.88434638,0.00014674,2]
[346518585,1735018259596,-201.84,0.00014746,2]
[346518586,1735018259605,-500.0,0.00014793,2]
[346518587,1735018259613,-421.47241582,0.00014793,2]
[346518588,1735018259622,-500.0,0.00014793,2]
[346518589,1735018259631,-500.0,0.00014793,2]
[346518590,1735018259640,-500.0,0.00014793,2]
[346518591,1735018259649,-500.0,0.00014793,2]
[346518592,1735018259658,-500.0,0.00014793,2]
[346518593,1735018259667,-500.0,0.00014793,2]
[346518594,1735018259677,-500.0,0.00014793,2]
[346518595,1735018259685,-500.0,0.00014793,2]
[346518596,1735018259695,-500.0,0.00014793,2]
[346518597,1735018259703,-500.0,0.00014793,2]
[346518598,1735018259712,-500.0,0.00014793,2]
[346518599,1735018259721,-500.0,0.00014793,2]
[346518600,1735018259730,-500.0,0.00014793,2]
[346518601,1735018259739,-500.0,0.00014793,2]
[346518602,1735018259748,-500.0,0.00014793,2]
[346518603,1735018259757,-500.0,0.00014793,2]
[346518604,1735018259766,-535.15,0.00014793,2]
[346518605,1735018259776,-500.0,0.00014793,2]
[346518606,1735018259785,-500.0,0.00014793,2]
[346518607,1735018259794,-500.0,0.00014793,2]
[346518608,1735018259803,-609.1,0.00014793,2]
[346518609,1735018259812,-500.0,0.00014793,2]
[346518610,1735018259821,-500.0,0.00014793,2]
[346518611,1735018259830,-171.66037741,0.00014793,2]
[346518612,1735018259838,-500.0,0.00014793,2]
[346518613,1735018259847,-500.0,0.00014793,2]
[346518614,1735018259856,-500.0,0.00014793,2]
[346518615,1735018259865,-500.0,0.00014793,2]
[346518616,1735018259874,-500.0,0.00014793,2]
[346518617,1735018259883,-500.0,0.00014793,2]
[346518618,1735018259892,-500.0,0.00014793,2]
[346518619,1735018259901,-500.0,0.00014793,2]
[346518620,1735018259910,-500.0,0.00014793,2]
[346518621,1735018259919,-500.0,0.00014793,2]
[346518622,1735018259928,-500.0,0.00014793,2]
[346518623,1735018259937,-500.0,0.00014793,2]
[346518624,1735018259946,-500.0,0.00014793,2]
[346518625,1735018259955,-500.0,0.00014793,2]
[346518626,1735018259964,-500.0,0.00014793,2]
[346518627,1735018259973,-500.0,0.00014793,2]
[346518628,1735018259982,-500.0,0.00014793,2]
[346518629,1735018259991,-500.0,0.00014793,2]
[346518630,1735018260000,-500.0,0.00014793,2]
[346518631,1735018260009,-500.0,0.00014793,2]
[346518632,1735018260018,-500.0,0.00014793,2]
[346518633,1735018260027,-500.0,0.00014793,2]
[346518634,1735018260037,-500.0,0.00014793,2]
[346518635,1735018260046,-258.6905725,0.00014793,2]
[346518636,1735018260056,-500.0,0.00014793,2]
[346518637,1735018260066,-500.0,0.00014793,2]
[346518638,1735018260076,-500.0,0.00014793,2]
[346518639,1735018260085,-500.0,0.00014793,2]
[346518640,1735018260094,-500.0,0.00014793,2]
[346518641,1735018260104,-500.0,0.00014793,2]
[346518642,1735018260113,-500.0,0.00014793,2]
[346518643,1735018260122,-500.0,0.00014793,2]
[346518644,1735018260131,-500.0,0.00014793,2]
[346518645,1735018260144,-500.0,0.00014793,2]
[346518646,1735018260154,-500.0,0.00014793,2]
[346518647,1735018260163,-500.0,0.00014793,2]
[346518648,1735018260172,-500.0,0.00014793,2]
[346518649,1735018260181,-500.0,0.00014793,2]
[346518650,1735018260192,-500.0,0.00014793,2]
[346518651,1735018260201,-500.0,0.00014793,2]
[346518652,1735018260210,-500.0,0.00014793,2]
[346518653,1735018260219,-500.0,0.00014793,2]
[346518654,1735018260228,-500.0,0.00014793,2]
[346518655,1735018260237,-500.0,0.00014793,2]
[346518656,1735018260246,-500.0,0.00014793,2]
[346518657,1735018260255,-500.0,0.00014793,2]
[346518658,1735018260264,-1508.76,0.00014793,2]
[346518659,1735018260274,-500.0,0.00014793,2]
[346518660,1735018260283,-500.0,0.00014793,2]
[346518661,1735018260292,-501.94428188,0.00014793,2]
[346518662,1735018260302,-500.0,0.00014793,2]